[Event "XXVIII Magistral Elgoibar 2018"]
[Site "Elgoibar"]
[Date "2018.12.15"]
[Round "5"]
[White "Ambartsumova, Karina"]
[Black "Martinez Fernandez, Adrian"]
[Result "1-0"]
[ECO "A18"]
[WhiteElo "2383"]
[BlackElo "2212"]
[Annotator "NA"]
[PlyCount "148"]
[EventDate "2018.12.12"]
[EventType "tourn"]
[EventCountry "ESP"]
[SourceTitle "playchess.com"]
[Source "ChessBase"]
[SourceQuality "1"]
[TimeControl "5400+30"]

1. c4 {[%emt 1:30:30]} Nf6 2. Nc3 e6 3. e4 d5 4. e5 d4 5. exf6 dxc3 6. bxc3 Qxf6 7. Nf3 b6 8. d4 h6 {[%emt 1:34:00]} 9. Ne5 {[%emt 0:04:00]} Bb7 {[%emt 0:00:30]} 10. Qa4+ {[%emt 0:00:30]} c6 {[%emt 0:00:30]} 11. g3 {[%emt 0:00:30]} Bd6 {[%emt 0:00:30]} 12. f4 {[%emt 0:00:30]} O-O {[%emt 0:00:30]} 13. Bg2 {[%emt 0:00:30]} Bxe5 {[%emt 0:00:30]} 14. fxe5 {[%emt 0:00:30]} Qe7 {[%emt 0:00:30]} 15. O-O {[%emt 0:00:30]} c5 {[%emt 0:00:30]} 16. d5 {[%emt 0:00:30]} exd5 {[%emt 0:00:30]} 17. cxd5 {[%emt 0:00:30]} Qxe5 {[%emt 0:00:30]} 18. Bf4 {[%emt 0:00:30]} Qxc3 {[%emt 0:00:30]} 19. Rae1 {[%emt 0:00:30]} b5 {[%emt 0:00:30]} 20. Qd1 {[%emt 0:00:30]} Nd7 {[%emt 0:00:30]} 21. Re7 {[%emt 0:00:30]} Bc8 {[%emt 0:00:30]} 22. d6 {[%emt 0:00:30]} Rb8 {[%emt 0:00:30]} 23. Bc6 {[%emt 0:00:30]} Nf6 {[%emt 0:00:30]} 24. d7 {[%emt 0:00:30]} Bxd7 {[%emt 0:00:30]} 25. Bxd7 {[%emt 0:00:30]} Rbd8 {[%emt 0:00:30]} 26. Bc7 Rxd7 27. Rxd7 Qe3+ 28. Rf2 {[%emt 0:01:30]} Nxd7 {[%emt 0:01:30]} 29. Qxd7 {[%emt 0:00:30]} Qe1+ {[%emt 0:00:30]} 30. Kg2 {[%emt 0:00:30]} Qe4+ 31. Kh3 {[%emt 0:00:30]} Qb7 {[%emt 0:01:00]} 32. Qe7 {[%emt 0:00:30]} c4 {[%emt 0:00:30]} 33. Bd6 {[%emt 0:00:30]} Qxe7 {[%emt 0:00:30]} 34. Bxe7 {[%emt 0:00:30]} Rc8 35. Bb4 {[%emt 0:00:30]} g6 {[%emt 0:01:00]} 36. Kg2 {[%emt 0:00:30]} f5 {[%emt 0:00:30]} 37. Kf3 {[%emt 0:00:30]} Kf7 {[%emt 0:00:30]} 38. Re2 {[%emt 0:00:30]} Rc7 {[%emt 0:00:30]} 39. Ke3 {[%emt 0:00:30]} Rd7 {[%emt 0:00:30]} 40. Rd2 {[%emt 0:00:30]} Rxd2 {[%emt 0:00:30]} 41. Bxd2 {[%emt 0:00:30]} Ke6 {[%emt 0:00:30]} 42. Kd4 {[%emt 0:00:30]} g5 {[%emt 0:00:30]} 43. Bc3 {[%emt 0:00:30]} a6 {[%emt 0:00:30]} 44. Bd2 {[%emt 0:00:30]} Kd6 {[%emt 0:00:30]} 45. Bb4+ {[%emt 0:00:30]} Ke6 {[%emt 0:00:30]} 46. Bf8 {[%emt 0:00:30]} h5 {[%emt 0:00:30]} 47. Bh6 {[%emt 0:00:30]} Kf6 {[%emt 0:00:30]} 48. h4 {[%emt 0:00:30]} gxh4 {[%emt 0:00:30]} 49. gxh4 {[%emt 0:00:30]} Ke6 {[%emt 0:00:30]} 50. Bf4 {[%emt 0:00:30]} Ke7 {[%emt 0:00:30]} 51. Kd5 {[%emt 0:00:30]} Kd7 {[%emt 0:00:30]} 52. Bd2 {[%emt 0:00:30]} Kc7 {[%emt 0:00:30]} 53. Ke5 {[%emt 0:00:30]} Kc6 {[%emt 0:00:30]} 54. Bb4 {[%emt 0:00:30]} Kb6 {[%emt 0:00:30]} 55. Kxf5 {[%emt 0:00:30]} a5 56. Be1 {[%emt 0:00:30]} b4 {[%emt 0:01:00]} 57. Ke5 {[%emt 0:00:30]} b3 {[%emt 0:00:30]} 58. Bc3 {[%emt 0:00:30]} bxa2 {[%emt 0:00:30]} 59. Kd5 {[%emt 0:00:30]} Kb5 {[%emt 0:00:30]} 60. Kd4 {[%emt 0:00:30]} a4 {[%emt 0:00:30]} 61. Ke3 {[%emt 0:00:30]} a1=Q {[%emt 0:00:30]} 62. Bxa1 {[%emt 0:00:30]} Kb4 63. Kd2 {[%emt 0:00:30]} Kb3 {[%emt 0:01:00]} 64. Bf6 {[%emt 0:00:30]} a3 {[%emt 0:00:30]} 65. Bg7 {[%emt 0:00:30]} a2 {[%emt 0:00:30]} 66. Bf6 {[%emt 0:00:30]} Ka3 {[%emt 0:00:30]} 67. Kc2 {[%emt 0:00:30]} Kb4 {[%emt 0:00:30]} 68. Kb2 {[%emt 0:00:30]} a1=Q+ {[%emt 0:00:30]} 69. Kxa1 {[%emt 0:00:30]} c3 {[%emt 0:00:30]} 70. Kb1 {[%emt 0:00:30]} Kb3 {[%emt 0:00:30]} 71. Kc1 {[%emt 0:00:30]} Kc4 {[%emt 0:00:30]} 72. Kc2 {[%emt 0:00:30]} Kd5 {[%emt 0:00:30]} 73. Kxc3 {[%emt 0:00:30]} Ke4 {[%emt 0:00:30]} 74. Bg5 {[%emt 0:00:30]} Kd5 {[%emt 0:00:30]} 1-0

[Event "XXVIII Magistral Elgoibar 2018"]
[Site "Elgoibar"]
[Date "2018.12.17"]
[Round "8"]
[White "Suarez Garcia, Carlos"]
[Black "Moreno Ruiz, Javier"]
[Result "0-1"]
[ECO "A04"]
[WhiteElo "2449"]
[BlackElo "2450"]
[Annotator "ChessBase"]
[PlyCount "92"]
[EventDate "2018.12.12"]
[EventType "tourn"]
[EventCountry "ESP"]
[SourceTitle "playchess.com"]
[Source "ChessBase"]
[SourceQuality "1"]
[TimeControl "5400+30"]

1. Nf3 {[%emt 1:30:30]} c5 {[%emt 1:30:30]} 2. b3 {[%emt 0:00:30]} Nc6 {[%emt 0:00:30]} 3. Bb2 {[%emt 0:00:30]} d6 {[%emt 0:00:30]} 4. e3 {[%emt 0:00:30]} e5 {[%emt 0:00:30]} 5. d4 {[%emt 0:00:30]} cxd4 {[%emt 0:00:30]} 6. exd4 {[%emt 0:00:30]} e4 {[%emt 0:00:30]} 7. Nfd2 {[%emt 0:00:30]} d5 {[%emt 0:00:30]} 8. c4 {[%emt 0:00:30]} Nf6 {[%emt 0:00:30]} 9. a3 {[%emt 0:00:30]} Bg4 {[%emt 0:00:30]} 10. Be2 {[%emt 0:00:30]} Bxe2 {[%emt 0:00:30]} 11. Qxe2 {[%emt 0:00:30]} Be7 {[%emt 0:00:30]} 12. cxd5 {[%emt 0:00:30]} Nxd5 {[%emt 0:00:30]} 13. Qxe4 {[%emt 0:00:30]} O-O {[%emt 0:00:30]} 14. O-O {[%emt 0:00:30]} Re8 {[%emt 0:00:30]} 15. Qf3 {[%emt 0:00:30]} Bf6 {[%emt 0:00:30]} 16. Nc3 {[%emt 0:00:30]} Nxd4 {[%emt 0:00:30]} 17. Qxd5 {[%emt 0:00:30]} Ne2+ {[%emt 0:00:30]} 18. Kh1 {[%emt 0:00:30]} Nxc3 {[%emt 0:00:30]} 19. Qxd8 {[%emt 0:00:30]} Raxd8 {[%emt 0:00:30]} 20. Nc4 {[%emt 0:00:30]} b5 {[%emt 0:00:30]} 21. Ne3 {[%emt 0:00:30]} Rd2 {[%emt 0:00:30]} 22. Bxc3 {[%emt 0:00:30]} Bxc3 {[%emt 0:00:30]} 23. Rad1 {[%emt 0:00:30]} Kf8 {[%emt 0:00:30]} 24. Nd5 {[%emt 0:00:30]} Rxd1 {[%emt 0:00:30]} 25. Rxd1 {[%emt 0:00:30]} Bb2 {[%emt 0:00:30]} 26. a4 {[%emt 0:00:30]} bxa4 {[%emt 0:00:30]} 27. bxa4 Re4 {[%emt 0:00:30]} 28. g3 {[%emt 0:01:00]} Rxa4 {[%emt 0:00:30]} 29. Rd3 {[%emt 0:00:30]} Rd4 {[%emt 0:00:30]} 30. Rb3 {[%emt 0:00:30]} Rxd5 {[%emt 0:00:30]} 31. Rb8+ {[%emt 0:00:30]} Ke7 {[%emt 0:00:30]} 32. Rxb2 {[%emt 0:00:30]} a5 {[%emt 0:00:30]} 33. Kg2 {[%emt 0:00:30]} a4 {[%emt 0:00:30]} 34. Kf3 {[%emt 0:00:30]} a3 {[%emt 0:00:30]} 35. Ra2 {[%emt 0:00:30]} Ra5 {[%emt 0:00:30]} 36. Ke4 {[%emt 0:00:30]} Kd6 {[%emt 0:00:30]} 37. Kd4 {[%emt 0:00:30]} Ra7 {[%emt 0:00:30]} 38. Kc4 {[%emt 0:00:30]} Ke5 {[%emt 0:00:30]} 39. f3 {[%emt 0:00:30]} g5 {[%emt 0:00:30]} 40. Re2+ {[%emt 0:00:30]} Kf5 {[%emt 0:00:30]} 41. Ra2 {[%emt 0:00:30]} h5 {[%emt 0:00:30]} 42. Kb4 {[%emt 0:00:30]} h4 {[%emt 0:00:30]} 43. Kc4 {[%emt 0:00:30]} hxg3 {[%emt 0:00:30]} 44. hxg3 {[%emt 0:00:30]} g4 {[%emt 0:00:30]} 45. Kd4 {[%emt 0:00:30]} gxf3 {[%emt 0:00:30]} 46. Ke3 {[%emt 0:00:30]} Ke5 {[%emt 0:00:30] Kd4+ [%clk 0:00:00]} 0-1

[Event "XXVIII Magistral Elgoibar 2018"]
[Site "Elgoibar"]
[Date "2018.12.17"]
[Round "8"]
[White "Huerga Leache, Mikel"]
[Black "Martinez Fernandez, Adrian"]
[Result "1-0"]
[ECO "E06"]
[WhiteElo "2448"]
[BlackElo "2212"]
[Annotator "NA"]
[PlyCount "45"]
[EventDate "2018.12.12"]
[EventType "tourn"]
[EventCountry "ESP"]
[SourceTitle "playchess.com"]
[Source "ChessBase"]
[SourceQuality "1"]
[TimeControl "5400+30"]

1. d4 {[%emt 1:30:30]} Nf6 {[%emt 1:30:30]} 2. Nf3 {[%emt 0:00:30]} d5 {[%emt 0:00:30]} 3. g3 {[%emt 0:00:30]} e6 {[%emt 0:00:30]} 4. Bg2 {[%emt 0:00:30]} Be7 {[%emt 0:00:30]} 5. c4 {[%emt 0:00:30]} O-O {[%emt 0:00:30]} 6. Qc2 {[%emt 0:00:30]} dxc4 {[%emt 0:00:30]} 7. Nbd2 {[%emt 0:00:30]} b5 {[%emt 0:00:30]} 8. a4 c6 9. axb5 {[%emt 0:01:00]} cxb5 {[%emt 0:01:00]} 10. Ng5 {[%emt 0:00:30]} h6 {[%emt 0:00:30]} 11. h4 {[%emt 0:00:30]} g6 {[%emt 0:00:30]} 12. Bxa8 {[%emt 0:00:30]} hxg5 {[%emt 0:00:30]} 13. hxg5 {[%emt 0:00:30]} Nd5 {[%emt 0:00:30]} 14. Qe4 {[%emt 0:00:30]} Bxg5 {[%emt 0:00:30]} 15. Qe5 {[%emt 0:00:30]} Bf6 {[%emt 0:00:30]} 16. Qxb8 {[%emt 0:00:30]} Nb4 {[%emt 0:00:30]} 17. Be4 {[%emt 0:00:30]} Bxd4 {[%emt 0:00:30]} 18. Qxb5 {[%emt 0:00:30]} Qf6 {[%emt 0:00:30]} 19. Qxb4 {[%emt 0:00:30]} Qxf2+ {[%emt 0:00:30]} 20. Kd1 {[%emt 0:00:30]} Rd8 {[%emt 0:00:30]} 21. Kc2 {[%emt 0:00:30]} Bc5 {[%emt 0:00:30]} 22. Qc3 {[%emt 0:00:30]} Bd4 {[%emt 0:00:30]} 23. Qf3 {[%emt 0:00:30]} 1-0

[Event "XXVIII Magistral Elgoibar 2018"]
[Site "Elgoibar"]
[Date "2018.12.17"]
[Round "8"]
[White "Napoli, Nicolo"]
[Black "Velten, Paul"]
[Result "0-1"]
[ECO "D38"]
[WhiteElo "2289"]
[BlackElo "2485"]
[Annotator "ChessBase"]
[PlyCount "74"]
[EventDate "2018.12.12"]
[EventType "tourn"]
[EventCountry "ESP"]
[SourceTitle "playchess.com"]
[Source "ChessBase"]
[SourceQuality "1"]
[TimeControl "5400+30"]

1. d4 {[%emt 1:30:30]} Nf6 {[%emt 1:30:30]} 2. c4 {[%emt 0:00:30]} e6 {[%emt 0:00:30]} 3. Nf3 {[%emt 0:00:30]} d5 {[%emt 0:00:30]} 4. Nc3 {[%emt 0:00:30]} Bb4 {[%emt 0:00:30]} 5. Qa4+ {[%emt 0:00:30]} Nc6 {[%emt 0:00:30]} 6. Ne5 {[%emt 0:00:30]} Bd7 {[%emt 0:00:30]} 7. Nxd7 {[%emt 0:00:30]} Qxd7 {[%emt 0:00:30]} 8. e3 {[%emt 0:00:30]} e5 {[%emt 0:00:30]} 9. a3 {[%emt 0:00:30]} exd4 {[%emt 0:00:30]} 10. axb4 {[%emt 0:00:30]} dxc3 {[%emt 0:00:30]} 11. bxc3 {[%emt 0:00:30]} O-O {[%emt 0:00:30]} 12. c5 {[%emt 0:00:30]} Qf5 {[%emt 0:00:30]} 13. Bb5 {[%emt 0:00:30]} Ne5 {[%emt 0:00:30]} 14. O-O {[%emt 0:00:30]} c6 {[%emt 0:00:30]} 15. Be2 {[%emt 0:00:30]} Rfd8 {[%emt 0:00:30]} 16. Qa2 {[%emt 0:00:30]} h6 {[%emt 0:00:30]} 17. Qb1 {[%emt 0:00:30]} Qe6 {[%emt 0:00:30]} 18. Qc2 {[%emt 0:00:30]} b6 {[%emt 0:00:30]} 19. Ra6 {[%emt 0:00:30]} bxc5 {[%emt 0:00:30]} 20. bxc5 {[%emt 0:00:30]} Ne4 {[%emt 0:00:30]} 21. Ba3 {[%emt 0:00:30]} Re8 {[%emt 0:00:30]} 22. Bb4 {[%emt 0:00:30]} Nc4 {[%emt 0:00:30]} 23. Bxc4 {[%emt 0:00:30]} dxc4 {[%emt 0:00:30]} 24. f3 {[%emt 0:00:30]} Nf6 {[%emt 0:00:30]} 25. e4 {[%emt 0:00:30]} Red8 {[%emt 0:00:30]} 26. Rd1 {[%emt 0:00:30]} Ne8 {[%emt 0:00:30]} 27. Rxd8 {[%emt 0:00:30]} Rxd8 {[%emt 0:00:30]} 28. Rxa7 {[%emt 0:00:30]} Rd3 {[%emt 0:00:30]} 29. Qe2 {[%emt 0:00:30]} Nf6 {[%emt 0:00:30]} 30. g3 {[%emt 0:00:30]} Nd7 {[%emt 0:00:30]} 31. Ra8+ {[%emt 0:00:30]} Kh7 {[%emt 0:00:30]} 32. Ra1 {[%emt 0:00:30]} Ne5 {[%emt 0:00:30]} 33. Rf1 {[%emt 0:00:30]} Qd7 {[%emt 0:00:30]} 34. f4 {[%emt 0:00:30]} Rd2 {[%emt 0:00:30]} 35. Qh5 {[%emt 0:00:30]} g6 {[%emt 0:00:30]} 36. Qh4 {[%emt 0:00:30]} Ng4 {[%emt 0:00:30]} 37. f5 {[%emt 0:00:30]} Ne3 {[%emt 0:00:30]} 0-1